fUSD/lending_fUSD_20240927
["ID","MTS","AMOUNT","RATE_DAILY","PERIOD"]
[339346990,1727457048881,-501.02796653,0.0001178,2]
[339346992,1727457048890,-500.0,0.0001178,2]
[339346994,1727457048899,-500.0,0.0001178,2]
[339346996,1727457048909,-500.0,0.0001178,2]
[339346998,1727457048918,-220.56748602,0.0001178,2]
[339347000,1727457048928,-500.69289927,0.0001178,2]
[339347002,1727457048936,-500.0,0.0001178,2]
[339347004,1727457048946,-343.40365149,0.0001178,2]
[339347006,1727457048955,-500.0,0.0001178,2]
[339347008,1727457048965,-500.0,0.0001178,2]
[339347010,1727457048974,-500.0,0.0001178,2]
[339347012,1727457048983,-500.0,0.0001178,2]
[339347014,1727457048992,-500.0,0.0001178,2]
[339347016,1727457049001,-500.0,0.0001178,2]
[339347017,1727457049010,-500.0,0.0001178,2]
[339347019,1727457049020,-500.0,0.0001178,2]
[339347021,1727457049029,-500.0,0.0001178,2]
[339347023,1727457049038,-500.0,0.0001178,2]
[339347025,1727457049047,-500.0,0.0001178,2]
[339347027,1727457049056,-500.0,0.0001178,2]
[339347029,1727457049065,-500.0,0.0001178,2]
[339347030,1727457049075,-500.0,0.0001178,2]
[339347031,1727457049085,-500.0,0.0001178,2]
[339347032,1727457049095,-500.0,0.0001178,2]
[339347033,1727457049104,-500.0,0.0001178,2]
[339347034,1727457049114,-501.3749855,0.0001178,2]
[339347035,1727457049123,-500.0,0.0001178,2]
[339347036,1727457049132,-183.77985867,0.0001178,2]
[339347037,1727457049141,-500.0,0.0001178,2]
[339347038,1727457049152,-566.49848117,0.0001178,2]
[339347040,1727457049161,-500.0,0.0001178,2]
[339347042,1727457049170,-500.0,0.0001178,2]
[339347044,1727457049179,-500.0,0.0001178,2]
[339347046,1727457049188,-500.0,0.0001178,2]
[339347048,1727457049198,-500.0,0.0001178,2]
[339347050,1727457049207,-500.0,0.0001178,2]
[339347052,1727457049217,-359.03166048,0.0001178,2]
[339347054,1727457049227,-500.0,0.0001178,2]
[339347056,1727457049236,-500.0,0.0001178,2]
[339347058,1727457049245,-500.0,0.0001178,2]
[339347060,1727457049255,-500.0,0.0001178,2]
[339347062,1727457049265,-500.0,0.0001178,2]
[339347064,1727457049274,-500.0,0.0001178,2]
[339347066,1727457049284,-500.0,0.0001178,2]
[339347068,1727457049295,-500.0,0.0001178,2]
[339347070,1727457049305,-500.0,0.0001178,2]
[339347072,1727457049314,-500.0,0.0001178,2]
[339347074,1727457049325,-500.0,0.0001178,2]
[339347076,1727457049334,-500.0,0.0001178,2]
[339347078,1727457049344,-500.0,0.0001178,2]
[339347080,1727457049354,-500.0,0.0001178,2]
[339347082,1727457049363,-500.0,0.0001178,2]
[339347084,1727457049373,-500.0,0.0001178,2]
[339347086,1727457049382,-500.0,0.0001178,2]
[339347088,1727457049392,-500.0,0.0001178,2]
[339347090,1727457049401,-500.0,0.0001178,2]
[339347092,1727457049411,-501.20966361,0.0001178,2]
[339347094,1727457049420,-500.0,0.0001178,2]
[339347096,1727457049429,-500.0,0.0001178,2]
[339347098,1727457049438,-500.0,0.0001178,2]
[339347100,1727457049448,-500.0,0.0001178,2]
[339347102,1727457049457,-500.0,0.0001178,2]
[339347103,1727457049466,-500.0,0.0001178,2]
[339347105,1727457049475,-500.0,0.0001178,2]
[339347107,1727457049485,-500.0,0.0001178,2]
[339347109,1727457049493,-500.0,0.0001178,2]
[339347111,1727457049502,-500.0,0.0001178,2]
[339347113,1727457049512,-500.0,0.0001178,2]
[339347115,1727457049521,-152.63245657,0.0001178,2]
[339347117,1727457049531,-500.0,0.0001178,2]
[339347120,1727457049540,-500.0,0.0001178,2]
[339347121,1727457049549,-500.0,0.0001178,2]
[339347123,1727457049559,-500.0,0.0001178,2]
[339347126,1727457049569,-500.0,0.0001178,2]
[339347127,1727457049581,-501.14018449,0.0001178,2]
[339347129,1727457049591,-500.0,0.0001178,2]
[339347131,1727457049600,-500.0,0.0001178,2]
[339347133,1727457049609,-307.38742935,0.0001178,2]
[339347135,1727457049619,-500.0,0.0001178,2]
[339347137,1727457049629,-500.0,0.0001178,2]
[339347139,1727457049638,-500.0,0.0001178,2]
[339347142,1727457049648,-500.0,0.0001178,2]
[339347144,1727457049658,-500.0,0.0001178,2]
[339347146,1727457049668,-500.0,0.0001178,2]
[339347148,1727457049677,-500.0,0.0001178,2]
[339347149,1727457049686,-500.0,0.0001178,2]
[339347151,1727457049696,-500.0,0.0001178,2]
[339347153,1727457049705,-500.0,0.0001178,2]
[339347155,1727457049715,-500.0,0.0001178,2]
[339347157,1727457049724,-500.0,0.0001178,2]
[339347159,1727457049735,-500.0,0.0001178,2]
[339347162,1727457049752,-500.0,0.0001178,2]
[339347164,1727457049761,-500.0,0.0001178,2]
[339347166,1727457049770,-500.0,0.0001178,2]
[339347167,1727457049779,-500.0,0.0001178,2]
[339347169,1727457049792,-500.0,0.0001178,2]
[339347171,1727457049801,-500.0,0.0001178,2]
[339347173,1727457049810,-561.06,0.0001178,2]
[339347175,1727457049819,-561.06,0.0001178,2]
[339347178,1727457049833,-561.06,0.0001178,2]
[339347180,1727457049842,-561.06,0.0001178,2]
[339347182,1727457049851,-561.06,0.0001178,2]
[339347184,1727457049860,-561.06,0.0001178,2]
[339347186,1727457049869,-561.06,0.0001178,2]
[339347188,1727457049878,-500.0,0.0001178,2]
[339347189,1727457049887,-561.06,0.0001178,2]
[339347191,1727457049896,-500.0,0.0001178,2]
[339347193,1727457049906,-500.0,0.0001178,2]
[339347195,1727457049915,-561.06,0.0001178,2]
[339347197,1727457049924,-500.0,0.0001178,2]
[339347199,1727457049933,-500.0,0.0001178,2]
[339347201,1727457049942,-500.0,0.0001178,2]
[339347203,1727457049951,-500.0,0.0001178,2]
[339347205,1727457049960,-500.0,0.0001178,2]
[339347207,1727457049969,-500.0,0.0001178,2]
[339347209,1727457049978,-500.0,0.0001178,2]
[339347211,1727457049987,-500.0,0.0001178,2]
[339347213,1727457049996,-500.0,0.0001178,2]
[339347215,1727457050005,-500.0,0.0001178,2]
[339347217,1727457050014,-500.0,0.0001178,2]
[339347219,1727457050023,-500.0,0.0001178,2]
[339347221,1727457050033,-500.0,0.0001178,2]
[339347223,1727457050042,-500.0,0.0001178,2]
[339347225,1727457050051,-500.0,0.0001178,2]
[339347227,1727457050060,-500.0,0.0001178,2]
[339347229,1727457050069,-329.14364566,0.0001178,2]
[339347230,1727457050078,-500.0,0.0001178,2]
[339347232,1727457050087,-500.0,0.0001178,2]
[339347234,1727457050096,-500.0,0.0001178,2]
[339347236,1727457050106,-500.0,0.0001178,2]
[339347238,1727457050115,-500.8316154,0.0001178,2]
[339347240,1727457050124,-500.0,0.0001178,2]
[339347242,1727457050134,-500.0,0.0001178,2]
[339347244,1727457050143,-237.17986892,0.0001178,2]
[339347246,1727457050152,-1250.34,0.0001178,2]
[339347248,1727457050161,-152.08572089,0.0001178,2]
[339347250,1727457050171,-1250.34,0.0001178,2]
[339347252,1727457050180,-1250.34,0.0001178,2]
[339347254,1727457050189,-1250.34,0.0001178,2]
[339347256,1727457050198,-1250.34,0.0001178,2]
[339347258,1727457050208,-1250.34,0.0001178,2]
[339347260,1727457050217,-1250.34,0.0001178,2]
[339347262,1727457050226,-1250.34,0.0001178,2]
[339347264,1727457050236,-1250.34,0.0001178,2]
[339347266,1727457050245,-1738.87,0.0001178,2]
[339347268,1727457050254,-1738.87,0.0001178,2]
[339347270,1727457050263,-1738.87,0.0001178,2]
[339347272,1727457050272,-1738.87,0.0001178,2]
[339347274,1727457050281,-500.0,0.0001178,2]
[339347276,1727457050290,-1738.87,0.0001178,2]
[339347278,1727457050299,-498.69132494,0.0001178,2]
[339347280,1727457050308,-1738.87,0.0001178,2]
[339347282,1727457050317,-1738.87,0.0001178,2]
[339347284,1727457050326,-1738.87,0.0001178,2]
[339347286,1727457050335,-500.0,0.0001178,2]
[339347288,1727457050344,-500.0,0.0001178,2]
[339347290,1727457050353,-500.0,0.0001178,2]
[339347292,1727457050362,-500.0,0.0001178,2]
[339347293,1727457050371,-500.0,0.0001178,2]
[339347295,1727457050380,-500.0,0.0001178,2]
[339347297,1727457050388,-500.0,0.0001178,2]
[339347299,1727457050398,-500.0,0.0001178,2]
[339347301,1727457050407,-500.0,0.0001178,2]
[339347303,1727457050416,-500.0,0.0001178,2]
[339347305,1727457050425,-500.0,0.0001178,2]
[339347307,1727457050433,-500.0,0.0001178,2]
[339347309,1727457050443,-500.0,0.0001178,2]
[339347311,1727457050452,-500.0,0.0001178,2]
[339347313,1727457050461,-500.0,0.0001178,2]
[339347315,1727457050470,-500.0,0.0001178,2]
[339347317,1727457050478,-500.0,0.0001178,2]
[339347319,1727457050487,-500.0,0.0001178,2]
[339347321,1727457050496,-500.0,0.0001178,2]
[339347323,1727457050505,-500.0,0.0001178,2]
[339347325,1727457050514,-500.0,0.0001178,2]
[339347327,1727457050522,-500.0,0.0001178,2]
[339347329,1727457050531,-500.0,0.0001178,2]
[339347331,1727457050540,-500.0,0.0001178,2]
[339347333,1727457050549,-500.0,0.0001178,2]
[339347335,1727457050558,-500.0,0.0001178,2]
[339347337,1727457050568,-500.0,0.0001178,2]
[339347339,1727457050578,-501.07039426,0.0001178,2]
[339347341,1727457050588,-500.0,0.0001178,2]
[339347343,1727457050597,-500.0,0.0001178,2]
[339347345,1727457050606,-501.59036611,0.0001178,2]
[339347347,1727457050615,-501.10591923,0.0001178,2]
[339347349,1727457050624,-500.0,0.0001178,2]
[339347351,1727457050634,-500.0,0.0001178,2]
[339347353,1727457050644,-500.0,0.0001178,2]
[339347355,1727457050656,-501.17899842,0.0001178,2]
[339347357,1727457050666,-500.0,0.0001178,2]
[339347359,1727457050675,-500.0,0.0001178,2]
[339347361,1727457050686,-500.0,0.0001178,2]
[339347363,1727457050695,-500.0,0.0001178,2]
[339347365,1727457050704,-500.0,0.0001178,2]
[339347367,1727457050714,-500.0,0.0001178,2]
[339347369,1727457050723,-500.0,0.0001178,2]
[339347371,1727457050732,-501.8115396,0.0001178,2]
[339347373,1727457050756,-500.67689734,0.0001178,2]
[339347375,1727457050765,-500.0,0.0001178,2]
[339347377,1727457050774,-500.98008159,0.0001178,2]
[339347379,1727457050783,-500.0,0.0001178,2]
[339347381,1727457050796,-500.0,0.0001178,2]
[339347382,1727457050805,-500.0,0.0001178,2]
[339347383,1727457050813,-500.0,0.0001178,2]
[339347384,1727457050822,-503.98750575,0.0001178,2]
[339347385,1727457050831,-841.64,0.0001178,2]
[339347386,1727457050840,-841.64,0.0001178,2]
[339347387,1727457050849,-841.64,0.0001178,2]
[339347388,1727457050858,-841.64,0.0001178,2]
[339347389,1727457050867,-841.64,0.0001178,2]
[339347391,1727457050876,-841.64,0.0001178,2]
[339347393,1727457050886,-841.64,0.0001178,2]
[339347395,1727457050895,-841.64,0.0001178,2]
[339347397,1727457050903,-841.64,0.0001178,2]
[339347399,1727457050912,-500.0,0.0001178,2]
[339347401,1727457050921,-676.61,0.0001178,2]
[339347403,1727457050931,-676.61,0.0001178,2]
[339347404,1727457050939,-676.61,0.0001178,2]
[339347405,1727457050949,-676.61,0.0001178,2]
[339347406,1727457050958,-676.61,0.0001178,2]
[339347407,1727457050967,-982.0,0.0001178,2]
[339347408,1727457050976,-676.61,0.0001178,2]
[339347409,1727457050985,-676.61,0.0001178,2]
[339347410,1727457050995,-676.61,0.0001178,2]
[339347411,1727457051004,-676.61,0.0001178,2]
[339347412,1727457051014,-676.61,0.0001178,2]
[339347413,1727457051024,-1488.0,0.0001178,2]
[339347414,1727457051033,-500.0,0.0001178,2]
[339347415,1727457051042,-500.0,0.0001178,2]
[339347416,1727457051051,-500.0,0.0001178,2]
[339347417,1727457051061,-500.0,0.0001178,2]
[339347418,1727457051070,-500.0,0.0001178,2]
[339347419,1727457051079,-500.0,0.0001178,2]
[339347421,1727457051089,-500.0,0.0001178,2]
[339347422,1727457051098,-500.0,0.0001178,2]
[339347424,1727457051107,-500.0,0.0001178,2]
[339347426,1727457051117,-500.0,0.0001178,2]
[339347428,1727457051126,-500.0,0.0001178,2]
[339347430,1727457051136,-500.0,0.0001178,2]
[339347432,1727457051146,-500.0,0.0001178,2]
[339347434,1727457051157,-500.0,0.0001178,2]
[339347436,1727457051166,-500.0,0.0001178,2]
[339347438,1727457051176,-500.0,0.0001178,2]
[339347440,1727457051185,-500.0,0.0001178,2]
[339347442,1727457051194,-500.0,0.0001178,2]
[339347444,1727457051204,-500.0,0.0001178,2]
[339347446,1727457051214,-500.0,0.0001178,2]
[339347448,1727457051223,-520.19231959,0.0001178,2]
[339347450,1727457051233,-500.0,0.0001178,2]
[339347452,1727457051243,-500.0,0.0001178,2]
[339347454,1727457051252,-500.0,0.0001178,2]
[339347456,1727457051262,-500.0,0.0001178,2]
[339347458,1727457051271,-500.0,0.0001178,2]
[339347459,1727457051280,-514.74055597,0.0001178,2]
[339347461,1727457051289,-557.04113348,0.0001178,2]
[339347463,1727457051299,-500.0,0.0001178,2]
[339347465,1727457051308,-500.0,0.0001178,2]
[339347467,1727457051317,-500.0,0.0001178,2]
[339347469,1727457051326,-500.0,0.0001178,2]
[339347471,1727457051335,-500.0,0.0001178,2]
[339347473,1727457051344,-500.0,0.0001178,2]
[339347475,1727457051354,-500.0,0.0001178,2]
[339347477,1727457051363,-500.0,0.0001178,2]
[339347479,1727457051372,-5644.71,0.0001178,2]
[339347481,1727457051381,-500.0,0.0001178,2]
[339347483,1727457051391,-99.58001176,0.0001178,2]
[339347511,1727457051651,-398.604,0.0001178,2]
[339347513,1727457051662,-1.81598824,0.0001178,2]
[339347515,1727457051672,-5644.71,0.0001178,2]
[339347517,1727457051681,-500.0,0.0001178,2]
[339347519,1727457051690,-500.0,0.0001178,2]
[339347521,1727457051699,-5644.71,0.0001178,2]
[339347523,1727457051707,-500.0,0.0001178,2]
[339347524,1727457051716,-5644.71,0.0001178,2]
[339347526,1727457051725,-500.0,0.0001178,2]
[339347528,1727457051734,-500.0,0.0001178,2]
[339347530,1727457051744,-5644.71,0.0001178,2]
[339347532,1727457051753,-500.0,0.0001178,2]
[339347534,1727457051765,-1670.90906183,0.0001178,2]
[339347875,1727457121187,315.97,0.00013918,30]
[339347876,1727457125169,250.0,0.00010907,2]
[339347877,1727457127916,7668.4537,0.00011075,2]
[339347878,1727457197027,250.0,0.00010893,2]
[339347879,1727457220672,243.21,8.942e-05,2]
[339347880,1727457226804,156.95,0.00010959,2]
[339347881,1727457242824,1155.52,0.0001085,2]
[339347882,1727457253633,200.0,0.0001085,2]
[339347883,1727457264293,328.0,0.0001085,2]
[339347884,1727457447281,250.0,0.00010959,2]
[339347885,1727457459126,2000.0,0.00010959,2]
[339347886,1727457467788,437.34,0.00010843,2]
[339347887,1727457524186,392.13,0.00010821,2]
[339347888,1727457529559,23900.0,0.00010821,2]
[339347889,1727457564127,156.26,0.00010832,2]
[339347890,1727457608882,459.53,0.00010821,2]
[339347891,1727457658288,176.82,0.00010791,2]
[339347892,1727457667711,250.0,0.00010959,2]
[339347893,1727457679701,300.17,0.00013918,30]
[339347894,1727457704597,250.0,0.0001077,2]
[339347895,1727457775912,250.94,8.876e-05,2]
[339347896,1727457812036,315.67,0.00010959,2]
[339347897,1727457833514,248.226519,0.00011084,2]
[339347898,1727457892557,1000.0,0.00010785,2]
[339347925,1727457963609,190.28,0.00010753,2]
[339347959,1727458070155,289.83,0.00010758,2]
[339347960,1727458099886,490.81,0.00010758,2]
[339347961,1727458099934,23900.0,0.00010758,2]
[339347978,1727458202518,285.16,0.00013918,30]
[339347983,1727458222429,1050.0,0.00011,2]
[339347989,1727458231796,-250.94,0.0001114,2]
[339347991,1727458231806,-182.5995416,0.0001132,2]
[339347992,1727458231816,-412.54740288,0.00011415,2]
[339347993,1727458231830,-302.03089066,0.00011415,2]
[339347994,1727458231840,-400.90484943,0.00011473,2]
[339347995,1727458231853,-299.6900001,0.00011473,2]
[339347996,1727458231864,-13.983444,0.00011473,2]
[339347997,1727458231874,-150.0,0.00011515,2]
[339347998,1727458231883,-150.0,0.00011515,2]
[339347999,1727458231892,-150.7075689,0.00011515,2]
[339348000,1727458231901,-150.0,0.00011515,2]
[339348001,1727458231914,-150.0,0.00011515,2]
[339348002,1727458231923,-150.33837435,0.00011515,2]
[339348003,1727458231933,-31.46635683,0.00011515,2]
[339348004,1727458231944,-119.30335619,0.00011515,2]
[339348005,1727458231954,-150.0,0.00011515,2]
[339348006,1727458231963,-150.0,0.00011515,2]
[339348007,1727458231972,-40.89316618,0.00011573,2]
[339348008,1727458231986,-290.16336359,0.00011573,2]
[339348009,1727458231998,-1601.38575,0.00011573,2]
[339348010,1727458232009,-2974.93362023,0.00011573,2]
[339348011,1727458232019,-131.21906608,0.00011643,2]
[339348012,1727458232030,-18.78093392,0.00011643,2]
[339348013,1727458232041,-361.61589702,0.00011668,2]
[339348014,1727458232051,-150.0,0.00011669,2]
[339348015,1727458232061,-276.20128348,0.0001167,2]
[339348016,1727458232074,-889.15149544,0.0001167,2]
[339348017,1727458232085,-382.31751455,0.0001167,2]
[339348018,1727458232097,-250.0,0.0001167,2]
[339348019,1727458232110,-752.76793986,0.0001167,2]
[339348020,1727458232121,-7517.22981859,0.0001167,2]
[339348021,1727458232132,-2034.3771887,0.0001167,2]
[339348022,1727458232144,-1356.25570561,0.0001167,2]
[339348023,1727458232157,-2787.35794757,0.0001167,2]
[339348024,1727458232168,-2000.0,0.0001167,2]
[339348025,1727458232180,-1754.3411062,0.0001167,2]
[339348026,1727458232190,-499.99,0.0001167,2]
[339348027,1727458232199,-14316.04673364,0.00011673,2]
[339348028,1727458232210,-389.84087267,0.00011673,2]
[339348029,1727458232222,-48780.00000005,0.00011673,2]
[339348030,1727458232249,-6190.43932981,0.00011673,2]
[339348031,1727458232261,-669.49955075,0.00011673,2]
[339348032,1727458232278,-335.08950845,0.00011673,2]
[339348033,1727458232289,-276.52,0.00011673,2]
[339348034,1727458232302,-432.000004,0.00011673,2]
[339348035,1727458232314,-401.44091038,0.00011673,2]
[339348038,1727458232327,-12177.92299829,0.00011673,2]
[339348040,1727458232338,-6708.88506348,0.00011673,2]
[339348043,1727458232357,-4603.03995499,0.00011673,2]
[339348045,1727458232368,-470.97639988,0.00011673,2]
[339348047,1727458232380,-312.4205569,0.00011673,2]
[339348053,1727458237881,-2702.756445,0.00011573,2]
[339348054,1727458237892,-5600.74336425,0.00011573,2]
[339348055,1727458238165,-12348.61886093,0.00011573,2]
[339348056,1727458238175,-3935.87811671,0.00011673,2]
[339348057,1727458238184,-229485.9116,0.00011673,2]
[339348058,1727458238193,-1966.3441,0.00011673,2]
[339348059,1727458238202,-168.75659745,0.0001168,2]
[339348060,1727458238211,-500.0,0.00011686,2]
[339348061,1727458238221,-200.0,0.00011686,2]
[339348062,1727458238230,-554.0,0.00011695,2]
[339348063,1727458238239,-1904.0,0.00011695,2]
[339348064,1727458238248,-1910.0,0.00011695,2]
[339348065,1727458238258,-807.0,0.00011695,2]
[339348066,1727458238267,-3349.0,0.00011695,2]
[339348067,1727458238276,-150.0,0.00011695,2]
[339348069,1727458238285,-625.0,0.00011695,2]
[339348071,1727458238294,-1263.0,0.00011695,2]
[339348073,1727458238303,-659.839,0.00011695,2]
[339348075,1727458238312,-810.0,0.00011695,2]
[339348077,1727458238322,-306.12,0.00011713,2]
[339348079,1727458238331,-153.35,0.0001177,2]
[339348081,1727458238341,-153.35,0.0001177,2]
[339348083,1727458238350,-150.0,0.00011771,2]
[339348085,1727458238358,-150.0,0.00011771,2]
[339348086,1727458238368,-500.0,0.00011773,2]
[339348087,1727458238377,-500.0,0.00011773,2]
[339348089,1727458238387,-6543.5605069,0.00011773,2]
[339348090,1727458238396,-18972.6659413,0.00011773,2]
[339348093,1727458238405,-66286.3838356,0.00011773,2]
[339348095,1727458238415,-150.01,0.00011779,2]
[339348098,1727458238425,-169.0686501,0.00011779,2]
[339348100,1727458238434,-500.0,0.00011779,2]
[339348102,1727458238443,-500.0,0.00011779,2]
[339348104,1727458238452,-500.0,0.00011779,2]
[339348106,1727458238461,-500.0,0.00011779,2]
[339348107,1727458238470,-500.0,0.00011779,2]
[339348110,1727458238479,-500.0,0.00011779,2]
[339348112,1727458238488,-500.0,0.00011779,2]
[339348114,1727458238497,-452.85289756,0.00011779,2]
[339348115,1727458238506,-500.0,0.00011779,2]
[339348117,1727458238515,-500.0,0.00011779,2]
[339348120,1727458238525,-500.0,0.00011779,2]
[339348121,1727458238534,-500.0,0.00011779,2]
[339348123,1727458238543,-500.0,0.00011779,2]
[339348125,1727458238552,-369.99142247,0.00011779,2]
[339348127,1727458238562,-554.0,0.00011779,2]
[339348129,1727458238571,-744087.59192245,0.00011779,2]
[339348131,1727458238580,-500.0,0.0001178,2]
[339348133,1727458238591,-376.03837988,0.0001178,2]
[339348135,1727458238599,-591.83,0.0001178,2]
[339348137,1727458238610,-591.83,0.0001178,2]
[339348138,1727458238618,-591.83,0.0001178,2]
[339348139,1727458238627,-591.83,0.0001178,2]
[339348140,1727458238636,-591.83,0.0001178,2]
[339348141,1727458238645,-591.83,0.0001178,2]
[339348142,1727458238654,-591.83,0.0001178,2]
[339348143,1727458238663,-500.0,0.0001178,2]
[339348144,1727458238672,-500.0,0.0001178,2]
[339348145,1727458238681,-500.0,0.0001178,2]
[339348146,1727458238690,-500.0,0.0001178,2]
[339348147,1727458238699,-226.54206589,0.0001178,2]
[339348148,1727458238708,-1031.73,0.0001178,2]
[339348149,1727458238717,-1031.73,0.0001178,2]
[339348150,1727458238726,-1031.73,0.0001178,2]
[339348151,1727458238735,-1031.73,0.0001178,2]
[339348152,1727458238744,-1031.73,0.0001178,2]
[339348153,1727458238753,-1031.73,0.0001178,2]
[339348155,1727458238762,-1031.73,0.0001178,2]
[339348157,1727458238771,-500.0,0.0001178,2]
[339348159,1727458238780,-500.0,0.0001178,2]
[339348161,1727458238789,-500.0,0.0001178,2]
[339348163,1727458238798,-500.0,0.0001178,2]
[339348165,1727458238808,-500.0,0.0001178,2]
[339348167,1727458238817,-500.0,0.0001178,2]
[339348169,1727458238826,-500.0,0.0001178,2]
[339348171,1727458238835,-500.0,0.0001178,2]
[339348172,1727458238844,-500.0,0.0001178,2]
[339348173,1727458238853,-500.0,0.0001178,2]
[339348174,1727458238863,-500.0,0.0001178,2]
[339348175,1727458238873,-500.0,0.0001178,2]
[339348176,1727458238882,-500.0,0.0001178,2]
[339348177,1727458238891,-500.0,0.0001178,2]
[339348178,1727458238900,-500.0,0.0001178,2]
[339348179,1727458238911,-500.0,0.0001178,2]
[339348180,1727458238921,-500.0,0.0001178,2]
[339348181,1727458238930,-500.0,0.0001178,2]
[339348182,1727458238939,-500.0,0.0001178,2]
[339348183,1727458238948,-500.0,0.0001178,2]
[339348184,1727458238958,-355.41098045,0.0001178,2]
[339348185,1727458238967,-500.0,0.0001178,2]
[339348186,1727458238975,-589.29038751,0.0001178,2]
[339348187,1727458238986,-500.0,0.0001178,2]
[339348188,1727458238995,-500.0,0.0001178,2]
[339348189,1727458239004,-500.0,0.0001178,2]
[339348190,1727458239013,-500.0,0.0001178,2]
[339348191,1727458239022,-500.0,0.0001178,2]
[339348192,1727458239031,-500.0,0.0001178,2]
[339348193,1727458239040,-500.0,0.0001178,2]
[339348194,1727458239049,-420.16509046,0.0001178,2]
[339348195,1727458239058,-500.0,0.0001178,2]
[339348196,1727458239067,-500.0,0.0001178,2]
[339348197,1727458239077,-500.0,0.0001178,2]
[339348198,1727458239086,-500.0,0.0001178,2]
[339348199,1727458239096,-500.0,0.0001178,2]
[339348200,1727458239105,-500.0,0.0001178,2]
[339348201,1727458239115,-1159.24,0.0001178,2]
[339348202,1727458239124,-1159.24,0.0001178,2]
[339348203,1727458239133,-1159.24,0.0001178,2]
[339348205,1727458239142,-1159.24,0.0001178,2]
[339348206,1727458239151,-500.0,0.0001178,2]
[339348207,1727458239160,-500.0,0.0001178,2]
[339348208,1727458239169,-1159.24,0.0001178,2]
[339348209,1727458239178,-500.0,0.0001178,2]
[339348210,1727458239187,-1159.24,0.0001178,2]
[339348211,1727458239197,-500.0,0.0001178,2]
[339348212,1727458239206,-1159.24,0.0001178,2]
[339348213,1727458239215,-500.0,0.0001178,2]
[339348214,1727458239224,-500.0,0.0001178,2]
[339348215,1727458239233,-500.0,0.0001178,2]
[339348216,1727458239242,-781.46,0.0001178,2]
[339348217,1727458239251,-781.46,0.0001178,2]
[339348218,1727458239261,-486.12332471,0.0001178,2]
[339348219,1727458239270,-781.46,0.0001178,2]
[339348220,1727458239280,-781.46,0.0001178,2]
[339348221,1727458239289,-781.46,0.0001178,2]
[339348222,1727458239298,-781.46,0.0001178,2]
[339348223,1727458239307,-781.46,0.0001178,2]
[339348224,1727458239316,-500.0,0.0001178,2]
[339348225,1727458239325,-500.0,0.0001178,2]
[339348226,1727458239334,-500.0,0.0001178,2]
[339348227,1727458239343,-166.40787795,0.0001178,2]
[339348228,1727458239352,-587.89845675,0.0001178,2]
[339348229,1727458239362,-500.0,0.0001178,2]
[339348230,1727458239372,-500.0,0.0001178,2]
[339348231,1727458239381,-500.0,0.0001178,2]
[339348232,1727458239390,-500.0,0.0001178,2]
[339348233,1727458239399,-500.0,0.0001178,2]
[339348234,1727458239409,-550.0595992,0.0001178,2]
[339348235,1727458239418,-500.0,0.0001178,2]